Cogmind - Beta 17 @@@ ROGUE MODE // 2026.08.07 @ 20:00:14 Player: 4R-ZE3 Result: Destroyed by S-43 Plague with Heavy Machine Gun Performance ------------- Evolutions (8) 4000 Regions Visited (11) 2200 Robots Destroyed (189) 945 Value Destroyed (10024) 10024 Prototype IDs (30) 600 Alien Tech Used (0) 0 Bonus (1862) 1862 TOTAL SCORE: 19631 Bonus ------- High Alert Combat Kills 556 Follower Combat Kills 554 Registered with UFD 300 Met Optimus in HQ 500 Friendly Fire -48 Cogmind --------- Core Integrity 0/1450 Matter 143/300 Energy 99/100 System Corruption 35% Temperature Cool (0) Movement Core (50) Location -2/Research Parts ------- > --- POWER (3) -------- (None) > --- PROPULSION (6) --- (None) > --- UTILITY (12) ----- (None) > --- WEAPON (2) ------- (None) > --- INVENTORY (5) ---- Biometal Leg Advanced Heat Sink Improved Phase Shifter Cooled Proton Cannon Matter Neutralizer Peak State ------------ > --- POWER ------------ Light Antimatter Reactor Light Antimatter Reactor Particle Reactor > --- PROPULSION ------- Improved VSS Leg Enhanced Armored Leg Myomer Leg Shield Leg Biometal Leg Biometal Leg > --- UTILITY ---------- Improved Cryofiber Web Advanced Heat Sink High-capacity Storage Unit Experimental Signal Interpreter Experimental Targeting Computer Improved Reaction Control System Centrium Heavy Armor Plating Graphene Brace Improved Focal Shield Advanced Hardlight Generator Improved Hacking Suite > --- WEAPON ----------- Advanced Plasma Cannon Enhanced Nova Cannon > --- INVENTORY -------- Light Antimatter Reactor Myomer Leg Biometal Leg Biometal Leg Biometal Leg Advanced Heat Sink 2N-1CE's Frost Array Deep Structural Scanner Improved Trap Scanner Improved Sensor Array Improved Phase Shifter Improved Heavy Armor Plating Advanced Hardlight Generator Cooled Proton Cannon Matter Neutralizer Long-range Phase Cannon Nova Cannon Micro-nuke Launcher [Rating: 164] Favorites ----------- Power Fission Core Engine Light Ion Engine Power Core Fission Core Reactor Cold Fusion Reactor Propulsion Flexi-carbon Leg Treads Light Treads Leg Flexi-carbon Leg Utility Advanced Heat Sink Device Advanced Heat Sink Storage High-capacity Storage Unit Processor Experimental Targeting Computer Hackware Improved Hacking Suite Protection Reactive Plating Weapon Heavy Plasma Cannon Energy Cannon Heavy Plasma Cannon Ballistic Gun Light Assault Rifle Ballistic Cannon Magnetic Acceleration Cannon Launcher Micro-nuke Launcher Slashing Weapon Axe Build | -11 -10 -10 -8 -8 -6 -5 -5 -4 -3 -3 -2 ------- Run | Yrd Mat Sub Rec Scr Fac Fac Ext Fac Res Tes Res Slots Evolved 16 | . . . . . 8 2 . 2 2 . 2 Power 2 | . . . . . . 1 . . . . 1 Propulsion 4 | . . . . . 2 1 . 1 . . . Utility 10 | . . . . . 6 . . 1 2 . 1 Weapon . | . . . . . . . . . . . . Parts Attached 172 | 6 8 3 1 4 53 14 7 14 31 10 21 Power 22 | 1 1 . . 1 3 1 . 3 6 1 5 Engine 5 | 1 1 . . 1 1 . . . . . 1 Core 3 | . . . . . 1 1 . . 1 . . Reactor 14 | . . . . . 1 . . 3 5 1 4 Propulsion 59 | 2 2 . . 1 14 7 5 6 10 6 6 Treads 14 | 2 2 . . 1 8 1 . . . . . Leg 45 | . . . . . 6 6 5 6 10 6 6 Wheel . | . . . . . . . . . . . . Hover . | . . . . . . . . . . . . Flight . | . . . . . . . . . . . . Utility 63 | 1 3 . 1 1 27 4 1 3 14 2 6 Device 38 | . 1 . . . 15 3 1 1 11 1 5 Storage 5 | 1 1 . . 1 1 . . 1 . . . Processor 9 | . 1 . . . 6 1 . . 1 . . Hackware 1 | . . . . . 1 . . . . . . Protection 10 | . . . 1 . 4 . . 1 2 1 1 Artifact . | . . . . . . . . . . . . Weapon 28 | 2 2 3 . 1 9 2 1 2 1 1 4 Energy Gun . | . . . . . . . . . . . . Energy Cannon 20 | . 2 2 . 1 5 2 1 1 1 1 4 Ballistic Gun 2 | 2 . . . . . . . . . . . Ballistic Cannon 2 | . . . . . 2 . . . . . . Launcher 3 | . . 1 . . 1 . . 1 . . . Special Weapon . | . . . . . . . . . . . . Impact Weapon . | . . . . . . . . . . . . Slashing Weapon 1 | . . . . . 1 . . . . . . Piercing Weapon . | . . . . . . . . . . . . Special Melee Weapon . | . . . . . . . . . . . . Unidentified Prototypes 11 | . . . . . 3 . . 1 2 3 2 Parts Lost 57 | . 1 3 . . 18 . 2 1 9 . 23 Power 11 | . 1 . . . . . . 1 3 . 6 Propulsion 18 | . . 1 . . 7 . 1 . 1 . 8 Utility 20 | . . . . . 9 . 1 . 4 . 6 Weapon 8 | . . 2 . . 2 . . . 1 . 3 Highest Loss Streak 23 | . 1 3 . . 4 . 2 1 3 . 23 To Critical Strikes . | . . . . . . . . . . . . Average Backups 17 | 1 7 7 6 11 19 19 19 19 19 19 17 Power 1 | . 1 1 1 1 2 2 2 1 1 1 . Propulsion 4 | . 3 3 3 2 4 3 4 4 4 4 3 Utility 7 | . . . . 4 7 8 8 8 7 8 7 Weapon 4 | . 1 2 2 2 5 5 5 4 5 5 5 Tool/Special . | . . . . . . . . . . . . Unused Backups 53 | . 1 . . . 26 13 1 . 8 . 4 Power 4 | . . . . . 3 . . . 1 . . Propulsion 16 | . . . . . 13 . 1 . 2 . . Utility 13 | . . . . . 5 5 . . 2 . 1 Weapon 20 | . 1 . . . 5 8 . . 3 . 3 Tool/Special . | . . . . . . . . . . . . Average Slot Usage (%) 95 | . 95 97 96 92 93 99 100 99 99 94 87 Engine 2 | . 14 14 14 13 . . . . . . . Core 1 | . . . . . . 10 11 1 . . . Reactor 5 | . . . . . 5 . . 8 8 8 11 Treads 9 | . 27 26 28 26 16 . . . . . . Leg 15 | . . . . . 4 28 29 31 27 27 23 Device 20 | . 6 14 5 . 23 22 23 21 30 22 23 Storage 6 | . 14 14 14 13 6 5 5 5 4 4 3 Processor 9 | . 4 . . . 13 11 11 10 9 9 7 Hackware 3 | . . . . . 4 5 5 5 4 4 3 Protection 3 | . . . 8 13 2 . . 4 1 4 3 Energy Cannon 12 | . 22 23 24 25 11 11 11 9 8 9 7 Peak Build Rating 164 | 6 12 12 12 20 83 96 93 121 145 148 164 Average Rating 84 | 5 10 10 10 14 66 91 92 112 130 142 142 On Entrance 61 | . 6 12 10 9 20 83 92 93 119 141 147 Avg Prop Armor Cover (%) 3 | . . . . . 3 . . . . . . Naked Turns 194 | . . . . 112 . . . . . . 82 Heaviest Build 137 | 13 34 32 41 68 87 91 91 112 130 126 137 Greatest Support 160 | 40 46 46 43 43 96 93 94 139 160 160 141 Greatest Overweight (x) 2 | 1 . 1 . 2 2 1 1 . 1 1 1 Average Overweight (x) . | . . . . . . . . . . . . Largest Inventory Capacity 20 | 8 15 15 15 20 20 20 20 20 20 20 20 Average Capacity 19 | 7 10 15 15 18 20 20 20 20 20 20 18 Most Carried 20 | 2 9 9 9 18 20 20 20 20 20 20 20 Average Carried 17 | 1 7 6 6 11 19 19 19 19 19 19 18 Final Capacity 20 | 8 15 15 15 20 20 20 20 20 20 20 5 Final Carried 20 | 2 9 6 9 18 20 20 20 20 20 20 5 Class Distribution -------------------- 26% | Mutant 22% | Skirmisher 19% | Scientist-Skirmisher 18% | Scavenger-Skirmisher 6% | Scavenger-Mutant Dominant Class ---------------- Mutant | -10/Materials Mutant | -10/Subcaves Mutant | -8/Recycling Mutant | -8/Scraptown Skirmisher | -6/Factory Scientist-Skirmisher | -5/Factory Commander-Skirmisher | -5/Extension Skirmisher | -4/Factory Scavenger-Skirmisher | -3/Research Skirmisher | -3/Testing Scientist-Skirmisher | -2/Research Resources | -11 -10 -10 -8 -8 -6 -5 -5 -4 -3 -3 -2 ----------- Run | Yrd Mat Sub Rec Scr Fac Fac Ext Fac Res Tes Res Matter Collected 4960 | 157 124 28 240 58 1401 426 317 372 1076 226 535 Remotely . | . . . . . . . . . . . . Salvage Created 9268 | . 536 56 57 . 2308 640 694 888 2059 226 1804 Parts 405 | . 28 9 2 . 104 33 21 34 103 8 63 Haulers Intercepted 1 | . . . . . . . . . 1 . . Recyclers Shooed 12 | . . . . . 5 2 1 1 . 2 1 Parts Field Recycled . | . . . . . . . . . . . . Retrieved Matter . | . . . . . . . . . . . . Parts Self-Destructed 9 | . . 9 . . . . . . . . . Prevented . | . . . . . . . . . . . . Parts Restored . | . . . . . . . . . . . . Kills | -11 -10 -10 -8 -8 -6 -5 -5 -4 -3 -3 -2 ------- Run | Yrd Mat Sub Rec Scr Fac Fac Ext Fac Res Tes Res Combat Hostiles Destroyed 160 | . 20 4 1 . 41 7 9 17 32 3 26 Guns 4 | . 4 . . . . . . . . . . Cannons 108 | . 15 1 1 . 35 6 6 9 23 2 10 AOE 27 | . . 3 . . 2 . . 6 4 . 12 Classes Destroyed 16 | . 3 1 1 . 7 1 1 . 2 . . Worker 3 | . . . . . . 1 . 1 . . 1 Builder 4 | . . . . . . . . . 2 . 2 Hauler 1 | . . . . . . . . . 1 . . Recycler 4 | . . . . . 1 1 . . . . 2 Mechanic 1 | . . . . . 1 . . . . . . Operator 5 | . 2 . . . 2 . . . . 1 . Turret 1 | . . 1 . . . . . . . . . Watcher 10 | . . . . . 2 2 1 2 . . 3 Swarmer 32 | . 12 4 . . 3 . . 5 3 . 5 Grunt 38 | . 8 . . . 14 . 2 1 5 . 8 Duelist 2 | . . . . . 1 . 1 . . . . Sentry 12 | . . . 1 . 4 1 4 . 2 . . Specialist 3 | . . . . . 3 . . . . . . Hunter 23 | . . . . . 4 1 1 7 5 2 3 Programmer 48 | . . . . . 12 5 . 4 16 1 10 Behemoth 2 | . . . . . . . 1 . 1 . . Best Kill Streak 9 | . 5 4 1 . 6 4 5 6 8 2 9 Combat Bots Only 9 | . 5 4 1 . 5 2 2 6 6 2 9 Max Kills in Single Turn 5 | . 1 3 1 . 2 2 1 5 4 1 4 Gunslinging . | . . . . . . . . . . . . Exploded 5 | . . 3 . . 1 . . 5 2 . 4 Melee . | . . . . . . . . . . . . Uniques/NPCs Destroyed . | . . . . . . . . . . . . Combat | -11 -10 -10 -8 -8 -6 -5 -5 -4 -3 -3 -2 -------- Run | Yrd Mat Sub Rec Scr Fac Fac Ext Fac Res Tes Res Hostile Shots Fired 1539 | . 98 59 . . 361 28 63 125 258 43 504 Missed 548 | . 22 28 . . 111 15 26 40 105 18 183 Hits 991 | . 76 31 . . 250 13 37 85 153 25 321 Melee 2 | . . . . . 2 . . . . . . Projectile 989 | . 76 31 . . 248 13 37 85 153 25 321 AOE 2 | . . . . . 2 . . . . . . Critical Strikes 43 | . 1 . . . 4 2 2 6 8 . 20 Actively Blocked 22 | . . . . . . . . . 4 . 18 Part Disruptions 1 | . . . . . . . . . 1 . . Damage Taken 16526 | . 718 247 . . 3915 242 625 1291 2888 259 6341 Core 2545 | . 167 49 . . 412 14 89 92 234 22 1466 Absorbed by Shields 2042 | . . . . . 84 30 222 318 532 96 760 Ignored by Resistances 648 | . . . . . 172 . . . 182 . 294 Core Remaining (%) 70 | 100 . . . 13 51 . 89 92 . 80 . Volleys Fired 714 | . 65 13 1 . 206 52 30 64 155 36 92 Largest 2 | . 2 2 2 . 2 2 2 2 2 2 2 Hottest 218 | . 136 136 136 . 180 180 180 180 188 203 218 Shots Fired 1130 | . 101 20 2 . 299 79 58 109 255 49 158 Gun 30 | . 30 . . . . . . . . . . Cannon 1076 | . 71 17 2 . 294 79 58 108 248 49 150 Launcher 24 | . . 3 . . 5 . . 1 7 . 8 Special . | . . . . . . . . . . . . Kinetic 66 | . 30 . . . 36 . . . . . . Thermal 1040 | . 71 17 2 . 258 79 58 108 248 49 150 Explosive 24 | . . 3 . . 5 . . 1 7 . 8 Electromagnetic . | . . . . . . . . . . . . Robot Hit Streak 39 | . 8 4 3 . 32 25 13 18 36 5 39 Robot Miss Streak 6 | . 4 2 . . 6 1 2 3 4 4 3 Penetration Max . | . . . . . . . . . . . . Secondary Targets 1 | . 1 . . . . . . . . . . Max Gunslinging Chain 1 | . 1 . . . . . . . . . . Shots Hit Robots 648 | . 59 10 1 . 174 32 44 62 150 15 101 Core Hits 321 | . 25 9 1 . 78 15 13 29 68 7 76 Critical Kills 12 | . 1 . . . 1 1 1 2 3 1 2 Critical Parts Destroyed . | . . . . . . . . . . . . Critical Strikes 12 | . 1 . . . 1 1 1 2 3 1 2 Meltdown 12 | . 1 . . . 1 1 1 2 3 1 2 Melee Attacks 9 | . . . . . 9 . . . . . . Impact . | . . . . . . . . . . . . Slashing 9 | . . . . . 9 . . . . . . Piercing . | . . . . . . . . . . . . Sneak Attacks . | . . . . . . . . . . . . Combat Hostiles . | . . . . . . . . . . . . Follow-up Attacks . | . . . . . . . . . . . . Damage Inflicted 26611 | . 1144 315 20 . 6268 1174 1543 2797 6674 514 6162 Guns 212 | . 212 . . . . . . . . . . Cannons 21010 | . 928 186 20 . 5470 1174 1543 2117 5311 514 3747 Explosions 5371 | . . 129 . . 791 . . 680 1363 . 2408 Melee . | . . . . . . . . . . . . Ramming 18 | . 4 . . . 7 . . . . . 7 Kinetic 598 | . 212 . . . 386 . . . . . . Thermal 20833 | . 928 186 20 . 5084 1174 1543 2326 5311 514 3747 Explosive 5045 | . . 129 . . 674 . . 471 1363 . 2408 Electromagnetic 117 | . . . . . 117 . . . . . . Impact . | . . . . . . . . . . . . Slashing . | . . . . . . . . . . . . Piercing . | . . . . . . . . . . . . Highest Corruption 35 | . 5 5 5 . 8 3 1 4 19 20 35 Average Corruption 6 | . 4 5 5 . 4 1 1 3 7 19 7 Corruption Purged 13 | . . . . . 7 3 . . . . 3 Corruption Blocked . | . . . . . . . . . . . . Effects 191 | . 6 3 10 . 63 3 5 5 44 33 19 Message Errors 32 | . 3 . 6 . 11 . 2 . 6 2 2 Matter Fused 49 | . 2 1 1 . 18 1 1 . 13 6 6 Heat Flow Errors 23 | . . . 1 . 8 . . 2 5 7 . Energy Discharges 21 | . . . 1 . 5 . 1 . 8 6 . Parts Rejected 5 | . 1 1 . . 1 . . . 1 . 1 Parts Fused 3 | . . . . . 1 . 1 . . 1 . Data Loss (minor) 21 | . . . 1 . 9 . . 1 3 3 4 Data Loss (major) 10 | . . . . . 3 . . 1 3 2 1 Misfires 7 | . . 1 . . 2 . . . 2 2 . Alerts 4 | . . . . . 1 1 . 1 . 1 . Misdirections 7 | . . . . . . . . . 1 1 5 Weapon Failures 9 | . . . . . 4 1 . . 2 2 . Overload Shots . | . . . . . . . . . . . . Overflow Damage 760 | . 9 2 . . 198 36 44 151 173 1 146 Projectiles 633 | . 9 2 . . 198 36 44 58 168 1 117 Explosions 127 | . . . . . . . . 93 5 . 29 Melee . | . . . . . . . . . . . . Knockbacks 2 | . . . . . 2 . . . . . . Impact . | . . . . . . . . . . . . Kinetic 2 | . . . . . 2 . . . . . . Secondary . | . . . . . . . . . . . . Self-Inflicted Damage 195 | . . 34 . . 37 . . 59 62 . 3 Shots 6 | . . 1 . . 2 . . 1 2 . . Rammed 6 | . 3 . . . 1 . . . . . 2 Targets Rammed 6 | . 3 . . . 1 . . . . . 2 Kicked . | . . . . . . . . . . . . Crushed . | . . . . . . . . . . . . Highest Temperature 391 | . 347 2 207 . 308 216 228 339 254 126 391 Average Temperature 77 | . 79 1 84 . 65 54 87 69 161 59 140 Received Heat Transfer 1831 | . 216 126 . . 953 6 164 51 106 . 209 Effects 11 | . 4 . . . 3 . . . . . 4 Energy Bleed 3 | . 2 . . . . . . . . . 1 Interference 7 | . 1 . . . 3 . . . . . 3 Matter Decay 1 | . 1 . . . . . . . . . . Siege Activations . | . . . . . . . . . . . . Martial Activations . | . . . . . . . . . . . . Shielding Activations . | . . . . . . . . . . . . Robots Disrupted . | . . . . . . . . . . . . Combat Hostiles . | . . . . . . . . . . . . Robots Corrupted . | . . . . . . . . . . . . Combat Hostiles . | . . . . . . . . . . . . Parts Fried 2 | . . . . . 2 . . . . . . Impact Corruptions . | . . . . . . . . . . . . Robots Melted 22 | . 1 . . . 4 1 3 2 5 1 5 Combat Hostiles 21 | . 1 . . . 4 1 3 2 5 1 4 Parts Melted 119 | . 4 . . . 19 11 12 16 37 3 17 Heat Transferred 29789 | . 1554 333 37 . 7788 1700 2350 3250 7400 698 4679 Parts Sabotaged . | . . . . . . . . . . . . Parts Stolen . | . . . . . . . . . . . . Parts Stripped . | . . . . . . . . . . . . Power Chain Reactions . | . . . . . . . . . . . . Alert | -11 -10 -10 -8 -8 -6 -5 -5 -4 -3 -3 -2 ------- Run | Yrd Mat Sub Rec Scr Fac Fac Ext Fac Res Tes Res Maximum Alert Level 3 | . 1 . . . 3 1 2 2 3 2 2 Low Security (%) 59 | 100 72 . 100 . 51 79 35 41 82 . 50 Level 1 24 | . 27 . . . 11 20 56 53 12 78 41 Level 2 15 | . . . . . 34 . 7 4 3 21 7 Level 3 1 | . . . . . 2 . . . . . . Level 4 . | . . . . . . . . . . . . Level 5 . | . . . . . . . . . . . . High Security . | . . . . . . . . . . . . Max Security . | . . . . . . . . . . . . Peak Influence 741 | . 301 . 98 . 741 290 447 437 714 440 538 Initial 400 | . . . 98 . . 290 43 210 222 400 182 Average 193 | . 104 . 25 . 257 141 209 206 105 342 223 Influence Increases 6597 | . 589 130 25 . 1501 364 809 739 1172 235 1033 Destroy 0b10 Robot/C 3460 | . 400 100 20 . 820 140 420 340 640 60 520 Destroy 0b10 Robot/NC 150 | . 10 . . . 30 20 15 15 15 5 40 Destroy Leader 716 | . 70 . . . 234 54 36 64 162 10 86 Allied During Kill 302 | . . . . . . . 302 . . . . Successful Hack 254 | . 32 . 5 . 72 51 . . 28 45 21 Disable Machine 345 | . . . . . 135 15 . 90 30 75 . Destroy Structure 995 | . 2 . . . 120 84 36 230 252 40 231 Partial Spotted 15 | . . . . . 15 . . . . . . Lose Combat Pursuer 360 | . 75 30 . . 75 . . . 45 . 135 Influence Decreases 6086 | . 307 206 231 . 907 869 469 743 884 623 847 Entered New Map 1472 | . . 136 108 . . 304 46 219 203 313 143 Time Decay 3744 | . 297 40 123 . 447 565 383 514 591 310 474 Lost Part 550 | . 10 30 . . 160 . 20 10 90 . 230 Lost Ally 20 | . . . . . . . 20 . . . . Purge Threat 300 | . . . . . 300 . . . . . . Squads Dispatched 67 | . 4 . . . 24 7 1 6 13 3 9 Investigation 20 | . 2 . . . 7 4 . 2 1 . 4 Extermination 30 | . . . . . 11 3 . 3 7 2 4 Reinforcement 13 | . 2 . . . 3 . 1 1 4 1 1 Assault 1 | . . . . . . . . . 1 . . Garrison 3 | . . . . . 3 . . . . . . Intercept . | . . . . . . . . . . . . Searches Triggered . | . . . . . . . . . . . . Construction Impeded 3 | . . . . . 1 . . . 1 . 1 Haulers Reinforced . | . . . . . . . . . . . . Active Scanning Responses . | . . . . . . . . . . . . Cargo Convoy Interrupts 1 | . . . . . 1 . . . . . . Stealth | -11 -10 -10 -8 -8 -6 -5 -5 -4 -3 -3 -2 --------- Run | Yrd Mat Sub Rec Scr Fac Fac Ext Fac Res Tes Res Distress Signals 15 | . 4 . . . 2 . 2 2 2 2 1 Communications Jammed . | . . . . . . . . . . . . Distress Signals . | . . . . . . . . . . . . Times Spotted 250 | . 28 7 . . 60 10 23 25 41 9 47 Peak Tracking Total 12 | . 4 6 . . 5 3 5 7 4 4 12 Tactical Retreats 16 | . 3 2 . . 5 . . . 2 . 4 Traps | -11 -10 -10 -8 -8 -6 -5 -5 -4 -3 -3 -2 ------- Run | Yrd Mat Sub Rec Scr Fac Fac Ext Fac Res Tes Res Traps Triggered 17 | . 7 . . . 3 1 . . 3 2 1 Indirectly . | . . . . . . . . . . . . Trap Hack Attempts . | . . . . . . . . . . . . Triggered . | . . . . . . . . . . . . Disarmed . | . . . . . . . . . . . . Reprogrammed . | . . . . . . . . . . . . Reused . | . . . . . . . . . . . . Traps Extracted . | . . . . . . . . . . . . Installed . | . . . . . . . . . . . . Triggered . | . . . . . . . . . . . . Machines | -11 -10 -10 -8 -8 -6 -5 -5 -4 -3 -3 -2 ---------- Run | Yrd Mat Sub Rec Scr Fac Fac Ext Fac Res Tes Res Machines Disabled 28 | . . 2 . . 9 1 3 6 2 5 . Max in Single Turn 3 | . . 1 . . 2 1 . 3 1 1 . Garrison Access 2 | . . . . . . . . . . 1 1 Machines Repaired . | . . . . . . . . . . . . Machines Dismantled . | . . . . . . . . . . . . Machines Sabotaged . | . . . . . . . . . . . . Overloaded Fab Kills . | . . . . . . . . . . . . Hacking | -11 -10 -10 -8 -8 -6 -5 -5 -4 -3 -3 -2 --------- Run | Yrd Mat Sub Rec Scr Fac Fac Ext Fac Res Tes Res Machines Accessed 75 | . 5 . 4 3 18 10 3 4 10 7 11 Terminals 36 | . 4 . 1 . 7 4 3 1 7 4 5 Fabricators 1 | . . . . . 1 . . . . . . Repair Stations . | . . . . . . . . . . . . Recycling Units 19 | . 1 . 3 . 6 3 . 2 2 . 2 Scanalyzers 13 | . . . . . 3 3 . 1 1 2 3 Garrison Access 3 | . . . . . 1 . . . . 1 1 Total Hacks 177 | . 18 . 7 26 33 25 5 8 24 11 20 Successful 93 | . 10 . 3 26 23 13 2 2 6 3 5 Failed 82 | . 8 . 4 . 10 11 3 6 17 8 15 Catastrophic 18 | . 1 . . . 1 4 . 1 2 3 6 Database Lockouts 2 | . . . . . . 1 . . 1 . . Manual 89 | . 16 . 2 . 16 10 3 5 19 6 12 Terminals 84 | . 16 . 2 . 14 14 5 2 16 6 9 Fabricators 2 | . . . . . 2 . . . . . . Repair Stations . | . . . . . . . . . . . . Recycling Units 26 | . 2 . 5 . 7 3 . 3 3 . 3 Scanalyzers 34 | . . . . . 8 8 . 3 5 3 7 Garrison Access 5 | . . . . . 2 . . . . 2 1 Terminal Hacks 42 | . 6 . . 26 6 2 2 . . . . Record 19 | . . . . 19 . . . . . . . Part Schematic 2 | . . . . . 1 1 . . . . . Robot Analysis 12 | . 6 . . 6 . . . . . . . Prototype ID Bank 1 | . . . . . 1 . . . . . . Open Door 3 | . . . . . . 1 2 . . . . Level Access Points 1 | . . . . . 1 . . . . . . Branch Access Points 1 | . . . . . 1 . . . . . . Unreport Threat 2 | . . . . . 2 . . . . . . Proto ID Catalog 1 | . . . . 1 . . . . . . . Fabricator Hacks 2 | . . . . . 2 . . . . . . Load Schematic 1 | . . . . . 1 . . . . . . Build 1 | . . . . . 1 . . . . . . Repair Station Hacks . | . . . . . . . . . . . . Recycling Unit Hacks 2 | . . . 2 . . . . . . . . Retrieve Components 2 | . . . 2 . . . . . . . . Scanalyzer 16 | . . . . . 7 5 . . 2 . 2 Retrieve Study 16 | . . . . . 7 5 . . 2 . 2 Garrison Access Hacks 2 | . . . . . . . . . . 1 1 Seal Access 2 | . . . . . . . . . . 1 1 Unauthorized Hacks 29 | . 4 . 1 . 8 6 . 2 4 2 2 Terminals 17 | . 4 . 1 . 3 3 . . 3 2 1 Botnet 17 | . 4 . 1 . 3 3 . . 3 2 1 Fabricators . | . . . . . . . . . . . . Repair Stations . | . . . . . . . . . . . . Recycling Units 12 | . . . . . 5 3 . 2 1 . 1 Fedlink 12 | . . . . . 5 3 . 2 1 . 1 Scanalyzers . | . . . . . . . . . . . . Garrison Access . | . . . . . . . . . . . . Data Cores Recovered 2 | . . . . . 2 . . . . . . Used 1 | . . . . . 1 . . . . . . Hacking Detections 50 | . 4 . 2 . 10 6 1 3 9 6 9 Full Trace Events 5 | . 1 . . . 1 . . . . . 3 Feedback Events . | . . . . . . . . . . . . Feedback Blocked . | . . . . . . . . . . . . Robot Schematics Acquired . | . . . . . . . . . . . . Robots Built . | . . . . . . . . . . . . Authchips . | . . . . . . . . . . . . Time . | . . . . . . . . . . . . Total Robot Build Rating . | . . . . . . . . . . . . Part Schematics Acquired 2 | . . . . . 1 1 . . . . . Parts Built 2 | . . . . . 2 . . . . . . Authchips . | . . . . . . . . . . . . Time 47 | . . . . . 47 . . . . . . Total Part Build Rating 10 | . . . . . 10 . . . . . . Part Studies Acquired 16 | . . . . . 7 5 . . 2 . 2 Parts Repaired . | . . . . . . . . . . . . Time . | . . . . . . . . . . . . Parts Recycled . | . . . . . . . . . . . . Recycled Matter . | . . . . . . . . . . . . Retrieved Matter . | . . . . . . . . . . . . Retrieved Components 2 | . . . 2 . . . . . . . . Parts Scanalyzed . | . . . . . . . . . . . . Part Schematics Acquired . | . . . . . . . . . . . . Parts Damaged . | . . . . . . . . . . . . Bothacking | -11 -10 -10 -8 -8 -6 -5 -5 -4 -3 -3 -2 ------------ Run | Yrd Mat Sub Rec Scr Fac Fac Ext Fac Res Tes Res Used RIF Installer . | . . . . . . . . . . . . Robots Hacked . | . . . . . . . . . . . . Non-combat . | . . . . . . . . . . . . Combat . | . . . . . . . . . . . . Robot Hacks Applied . | . . . . . . . . . . . . Relay Couplers Released . | . . . . . . . . . . . . Fabnet Peak Effective % . | . . . . . . . . . . . . Robots Rewired 15 | . . . . . . . 15 . . . . Allies Hacked . | . . . . . . . . . . . . Hacks Repelled . | . . . . . . . . . . . . Allies | -11 -10 -10 -8 -8 -6 -5 -5 -4 -3 -3 -2 -------- Run | Yrd Mat Sub Rec Scr Fac Fac Ext Fac Res Tes Res Total Allies 16 | . . . . . . . 16 . . . . Largest Group 16 | . . . . . . . 16 . . . . Highest-Rated Group 485 | . . . . . . . 485 . . . . Highest-Rated Ally 39 | . . . . . . . 39 . . . . Initial UFD Resources 93 | . . . . . 22 46 62 65 81 91 93 Total Orders 3 | . . . . . . . 3 . . . . STAY 2 | . . . . . . . 2 . . . . FOLLOW 1 | . . . . . . . 1 . . . . Ally Attacks 141 | . . . . . . . 141 . . . . Total Damage 2416 | . . . . . . . 2416 . . . . Kills 16 | . . . . . . . 16 . . . . Allies Corrupted . | . . . . . . . . . . . . Allies Melted . | . . . . . . . . . . . . Intel | -11 -10 -10 -8 -8 -6 -5 -5 -4 -3 -3 -2 ------- Run | Yrd Mat Sub Rec Scr Fac Fac Ext Fac Res Tes Res Active Infowar (turns) 14025 | . . . . . 5188 1698 912 1402 3131 694 1000 Sensors 13133 | . . . . . 4398 1698 912 1402 3131 694 898 Terrain 29 | . . . . . 29 . . . . . . Structural 7178 | . . . . . 386 1471 639 1255 2318 188 921 Traps 10647 | . . . . . 4145 1620 621 1247 1666 450 898 Machine Analysis 549 | . . . . . 549 . . . . . . Robot Analysis Total 12 | . 6 . . 6 . . . . . . . Derelict Logs Recovered . | . . . . . . . . . . . . Drone Launches . | . . . . . . . . . . . . Drone Recoveries . | . . . . . . . . . . . . Exploration | -11 -10 -10 -8 -8 -6 -5 -5 -4 -3 -3 -2 ------------- Run | Yrd Mat Sub Rec Scr Fac Fac Ext Fac Res Tes Res Turns Passed 17737 | 66 798 87 420 1788 5418 1698 912 1402 3250 694 1204 Spaces Moved 9291 | 37 338 30 258 929 2178 1131 469 765 1708 556 892 Core 382 | 4 . . . 217 . . . . . . 161 Treads 3235 | 33 338 30 258 712 1864 . . . . . . Legs 5674 | . . . . . 314 1131 469 765 1708 556 731 Wheels . | . . . . . . . . . . . . Hover . | . . . . . . . . . . . . Flight . | . . . . . . . . . . . . Fastest Speed 50 | 50 160 160 160 50 160 96 104 109 107 99 50 Average Speed 140 | 152 160 162 160 188 192 108 113 121 114 101 91 Slowest Speed 320 | 160 160 240 160 320 320 178 178 130 178 178 170 Overloaded Moves . | . . . . . . . . . . . . Propulsion Burnouts . | . . . . . . . . . . . . Robots Hopped . | . . . . . . . . . . . . Potential Cave-ins . | . . . . . . . . . . . . Cave-ins Triggered . | . . . . . . . . . . . . Exploration Rate (%) 37 | 3 77 4 39 57 46 37 51 16 38 57 30 Regions Visited 11 Branch Regions 5 Pre-discovered Areas 6 | . . . . 5 1 . . . . . . Known Exits Taken 7 | . . . . 1 1 1 1 1 1 1 . Unknown Exits Taken 4 | 1 1 1 1 . . . . . . . . Scrap Searched 3 | . . . . 3 . . . . . . . Spaces Dug 222 | . . . . . 69 37 . 29 49 14 24 Terrain Destroyed 571 | . . 7 . . 127 42 5 122 156 19 93 Melee 8 | . . . . . 8 . . . . . . Projectile 287 | . . 1 . . 85 42 5 39 60 19 36 AOE 276 | . . 6 . . 34 . . 83 96 . 57 Terrain Rammed . | . . . . . . . . . . . . Walls Destroyed . | . . . . . . . . . . . . Machines Disabled . | . . . . . . . . . . . . Actions | -11 -10 -10 -8 -8 -6 -5 -5 -4 -3 -3 -2 --------- Run | Yrd Mat Sub Rec Scr Fac Fac Ext Fac Res Tes Res Total 12784 | 44 492 48 264 966 3079 1518 786 1118 2726 635 1108 Wait 1927 | . 61 . 2 . 465 235 146 228 719 14 57 Move 9280 | 36 337 29 257 928 2177 1130 468 764 1707 555 892 Hop . | . . . . . . . . . . . . Pick Up 146 | 2 7 . 1 23 58 26 1 4 22 1 1 Fast Attach 84 | 6 10 1 . 5 20 7 . 2 14 10 9 Attach 61 | . 1 3 . 4 24 3 2 3 12 . 9 Detach 8 | . . . 2 . 6 . . . . . . Swap 269 | . 3 2 1 3 58 32 24 40 64 8 34 Drop 170 | . 5 . . 3 55 33 5 13 33 11 12 Fire 714 | . 65 13 1 . 206 52 30 64 155 36 92 Melee 9 | . . . . . 9 . . . . . . Ram 2 | . . . . . . . . . . . 2 Kick . | . . . . . . . . . . . . Crush 4 | . 3 . . . 1 . . . . . . Escape Stasis . | . . . . . . . . . . . . Rewire 110 | . . . . . . . 110 . . . . Trap . | . . . . . . . . . . . . Miscellaneous . | . . . . . . . . . . . . Route ------- -11/Scrapyard -10/Materials (discovered 4 exits: [*Mat x2] / [*Min] / [*Sub]) -10/Subcaves -8/Recycling -8/Scraptown (discovered 2 exits: *Fac x2) -6/Factory (discovered 6 exits: *Fac x4 / Low x2) -5/Factory (discovered 2 exits: *Fac / *Ext) -5/Extension -4/Factory (discovered 2 exits: *Res / *Upp) -3/Research (discovered 2 exits: *Arm / *Tes) -3/Testing -2/Research (discovered 1 exit: [*Acc]) History --------- Turn | Location | Event 33 | -11/Scrapyard | Discovered new exit (range 16) 67 | -11/Scrapyard | Entered Materials 312 | -10/Materials | Build established: Mutant 351 | -10/Materials | Discovered new exit (range 8) 367 | -10/Materials | Discovered new exit (range 15) 581 | -10/Materials | Discovered new exit (range 13) 745 | -10/Materials | Core integrity fell below 50% 858 | -10/Materials | Discovered new exit (range 6) 865 | -10/Materials | Entered Subcaves 866 | -10/Subcaves | Approached by a straggling Scientist 878 | -10/Subcaves | Core integrity fell below 20% 915 | -10/Subcaves | Discovered new exit (range 10) 936 | -10/Subcaves | Lost 3 parts (1n2w) 952 | -10/Subcaves | Entered Recycling 1322 | -8/Recycling | Scanned before Scraplab entrance 1356 | -8/Recycling | Entered Scraplab 1369 | -8/Recycling | Discovered new exit (range 2) 1372 | -8/Recycling | Entered Scraptown 1372 | -8/Scraptown | System corruption cleaned by C-Scrubber 1650 | -8/Scraptown | Visited Cyclists 1689 | -8/Scraptown | Visited Spacefarers 1722 | -8/Scraptown | Visited Shadow of the Wyrm 1859 | -8/Scraptown | Visited UFD Registry 1859 | -8/Scraptown | Registered with UFD as "Wrenchgrid" 1919 | -8/Scraptown | Visited Infowarlord's Domain 1931 | -8/Scraptown | Found Exp. Sensor Array 1975 | -8/Scraptown | Visited Science Guys 2083 | -8/Scraptown | Visited Curators Association 2153 | -8/Scraptown | Visited Analyses Database 2203 | -8/Scraptown | Visited Junk Repository 2283 | -8/Scraptown | Visited Cartography Club 2326 | -8/Scraptown | Visited Chapter 10 2369 | -8/Scraptown | Visited Scrap Suit Storage 2408 | -8/Scraptown | Visited A0-MCA Data Center 2422 | -8/Scraptown | Given a C+ rating by A0-MCA 2429 | -8/Scraptown | Found A0-MCA's Component Scanner 2550 | -8/Scraptown | Released all parts (7) 2622 | -8/Scraptown | Learned location of Storage (-8) 2622 | -8/Scraptown | Learned location of Warlord (-4) 2622 | -8/Scraptown | Learned location of Zion (-7) 2622 | -8/Scraptown | Learned location of Lower Caves (-7) 2622 | -8/Scraptown | Learned 8 Materials zone layouts 2622 | -8/Scraptown | Learned 20 Factory zone layouts 2622 | -8/Scraptown | Learned 24 Factory zone layouts 2622 | -8/Scraptown | Learned 12 Lower Caves zone layouts 2622 | -8/Scraptown | Learned 20 Lower Caves zone layouts 2622 | -8/Scraptown | Learned 12 Upper Caves zone layouts 2622 | -8/Scraptown | Learned 20 Upper Caves zone layouts 2622 | -8/Scraptown | Learned 24 Upper Caves zone layouts 2622 | -8/Scraptown | Learned location of 1 exit from Lower Caves 2622 | -8/Scraptown | Learned location of 2 exits from Lower Caves 2622 | -8/Scraptown | Learned location of 2 exits from Proximity Caves 2622 | -8/Scraptown | Identified exit to Factory 2647 | -8/Scraptown | Found Deep Structural Scanner 3028 | -8/Scraptown | Met Optimus 3028 | -8/Scraptown | Accepted into 0bPrime 3160 | -8/Scraptown | Entered Factory 3160 | -6/Factory | Evolved 8 slots: Propulsion x2, Utility x6 3161 | -6/Factory | Identified exit to Lower Caves 3162 | -6/Factory | Identified exit to Factory 4108 | -6/Factory | Build established: Skirmisher 4433 | -6/Factory | Loaded intel: 8 recycling unit locations 4993 | -6/Factory | Found Powered Armor 4999 | -6/Factory | Found Prototype Processor 5000 | -6/Factory | Identified Exp. Targeting Computer 5116 | -6/Factory | Build established: Assassin 5486 | -6/Factory | Build established: Skirmisher 5818 | -6/Factory | Garrison activated, responded to threat 6009 | -6/Factory | Cargo convoy interrupted 6105 | -6/Factory | Learned location of Protoforge (-2) 6273 | -6/Factory | Lost 3 parts (3u) 6613 | -6/Factory | Lost 4 parts (2n1u1w) 6623 | -6/Factory | Build established: Scavenger-Skirmisher 6819 | -6/Factory | Fabricated Hvy. Plasma Cannon? 7978 | -6/Factory | Lost 3 parts (1n2u) 8301 | -6/Factory | Build established: Scientist-Skirmisher 8578 | -6/Factory | Entered another Factory area 8578 | -5/Factory | Evolved 2 slots: Power x1, Propulsion x1 8944 | -5/Factory | Discovered new exit (range 12) 8963 | -5/Factory | Identified exit to Factory 9242 | -5/Factory | Loaded intel: 8 recycling unit locations 9627 | -5/Factory | Central database locked down 10267 | -5/Factory | Discovered new exit (range 10) 10274 | -5/Factory | Identified exit to Extension 10276 | -5/Factory | Entered Extension 10442 | -5/Extension | Rescued a captive Derelict 10761 | -5/Extension | Build established: Commander-Skirmisher 11073 | -5/Extension | Spotted B-75 Beast 11079 | -5/Extension | Allies destroyed B-75 Beast 11099 | -5/Extension | Spotted B-75 Beast 11100 | -5/Extension | Destroyed B-75 Beast 11133 | -5/Extension | Discovered exit to Factory (range 3) 11188 | -5/Extension | Entered Factory 11188 | -4/Factory | Evolved 2 slots: Propulsion x1, Utility x1 11222 | -4/Factory | Discovered new exit (range 15) 11237 | -4/Factory | Identified exit to Research 11261 | -4/Factory | Discovered new exit (range 14) 11275 | -4/Factory | Identified exit to Upper Caves 11292 | -4/Factory | Loaded intel: 8 recycling unit locations 11661 | -4/Factory | Build established: Scavenger-Skirmisher 12049 | -4/Factory | Build established: Skirmisher 12590 | -4/Factory | Entered Research 12590 | -3/Research | Evolved 2 slots: Utility x2 12935 | -3/Research | Central database locked down 13002 | -3/Research | Discovered new exit (range 12) 13013 | -3/Research | Identified exit to Armory 13210 | -3/Research | Found Exp. Signal Interpreter 14592 | -3/Research | Build established: Scavenger-Skirmisher 14848 | -3/Research | Lost 3 parts (1p1n1u) 15176 | -3/Research | System corruption reached 10% 15443 | -3/Research | Loaded intel: 5 recycling unit locations 15527 | -3/Research | Spotted B-86 Titan 15562 | -3/Research | Destroyed B-86 Titan 15697 | -3/Research | Discovered new exit (range 16) 15717 | -3/Research | Identified exit to Testing 15840 | -3/Research | First assault squad dispatched 15840 | -3/Research | Entered Testing 15875 | -3/Testing | Build established: Mutant 16061 | -3/Testing | Found Prototype Protection 16061 | -3/Testing | Identified Centrium Heavy Armor Plating 16107 | -3/Testing | Spotted Striker 16291 | -3/Testing | Build established: Skirmisher 16505 | -3/Testing | Discovered new exit (range 12) 16517 | -3/Testing | Found Prototype Device 16517 | -3/Testing | Identified 2N-1CE's Frost Array 16527 | -3/Testing | Identified exit to Research 16534 | -3/Testing | Entered Research 16534 | -2/Research | Evolved 2 slots: Power x1, Utility x1 17046 | -2/Research | Build established: Scientist-Skirmisher 17195 | -2/Research | Loaded intel: 5 recycling unit locations 17604 | -2/Research | System corruption reached 10% 17656 | -2/Research | Released all parts (7) 17675 | -2/Research | Destroyed 9 combat bots 17685 | -2/Research | Discovered new exit (range 12) 17686 | -2/Research | Lost 23 parts (6p8n6u3w) 17698 | -2/Research | Core integrity fell below 50% 17714 | -2/Research | Spotted B-90 Cyclops 17722 | -2/Research | System corruption reached 30% 17729 | -2/Research | Core integrity fell below 20% 17738 | -2/Research | Destroyed by S-43 Plague with Heavy Machine Gun Last Messages --------------- data lost. 17661_ U-05 Engineer lays Concrete. 17662_ Penetrated by Slug. 17664_ K-01 Serf collects debris. 17676_ System corrupted: Component data lost. 17685_ EXIT=FOUND 17685_ Connecting with Terminal... 17685_ ALERT: Suspicious activity at Terminal R011. Dispatching Investigation squad. 17692_ System corrupted: Matter fused (-7). 17707_ Slammed into P-80 Master. 17711_ System corrupted: Matter fused (-9). 17718_ Terminal disabled. 17720_ Recycling Unit disabled. 17729_ B-90 Cyclops activates siege mode. 17732_ System corrupted: Component data lost. 17736_ K-01 Serf cleans the Recycling Unit. 17738_ C-30 ARC bursts open, deploying its payload. 17738_ S-43 Plague unfolds itself. Map ----- +----------------------------------------------------+ | ?????????????????????????????????????????????????? | | ?????????????????????????????????????????????????? | | ?????????????????????????????????????????????????? | | ?????????????????????????????????????????????????? | | ?????????????????????????????????????????????????? | | ?????????????????????????????????????????????????? | | ?????????????????????????????????????????????????? | | ?????????????????????????????????????????????????? | | ????????????????????????????????##############???? | | ????????????????????????????????# #???? | | ????????????????????????? ????# #???? | | ??????????????????????? #???? #???? | | ??????????????????????? #?????? ?????? | | ???????????????????????? #???????? ???????? | | ???????????????????????? #??########+##???????? | | ???????????????????????? #??# # #####???? | | ???????????????????????? #??# # #"""####? | | ????????????????????????? ???# # #"T"# #? | | ????????????????????????? ???# # # " #? | | ????????????????H???????? s ???# # #? | | ??????????????????????####/##### # ## | | ??????????????????????# sss # + + | | ??????????????????????# # " ! ## | | ??????????????????????#= # " ]] #? | | ??????????????????????# # " ] ## | | ??????????????????????# @ # + "# | | ????################??# # * # ## | | ????################??# " " ######" + | | ####################??# "Y" /A # | | ####################### k""" #####"##" Y" # # | | ######## ## ###R#######????###"""""# + | | ######## ## # #####????####### # | | ### "" ## # =] ???####??# # | | ### """## ### =] !??##T #### # | | ### "# ?# | | ### ! # ?# | | ### # # | | ### # ?+ | | # # # % % # ###/#### | | # ###### ??# # | | ### [ ######## # | | +####### == !!! ^ # | | [ * * ]!!! # | | [%==*|% % [!=!= # | | =!! [ % !%!!* # | | % !] %! "#########+##########+ | | [ #### ##### #??????# | | = # ##### #??????# | | # ##### """ #??????# | | # !!! + ##### """ #??????# | +----------------------------------------------------+ Best States ------------- Heat Dissipation 168 Energy Generation 55 Energy Capacity 580 Matter Stores 300 Matter Capacity 300 Sight Range 16 Robot Scan Range 20 Terrain Scan Range 20 Terrain Scan Density 10 Base Temperature (-) 150 Corruption Containment 8 Armor Coverage 1200 Resistance: KI 25 Resistance: TH 20 Phase Shifting 10 Evasion (%) 90 Targeting Accuracy 12 Target Analysis 5 Recoil Reduction 4 Offensive Hacking 12 Item Schematics ----------------- Hvy. Plasma Cannon | -6/Factory | Hacked Myomer Leg | -5/Factory | Hacked Robot Schematics ------------------ None Fabricated ------------ Hvy. Plasma Cannon | x2 | -6/Factory Repaired ---------- Nothing Studied --------- Hvy. Plasma Cannon | -6/Factory | Hacked Hvy. Rocket Launcher | -6/Factory | Hacked Plasma Cannon | -6/Factory | Hacked Flexi-carbon Leg | -6/Factory | Hacked Carbon-fiber Leg | -6/Factory | Hacked Lgt. Treads | -6/Factory | Hacked Imp. VSS Leg | -6/Factory | Hacked Phase Cannon | -5/Factory | Hacked Fission Core | -5/Factory | Hacked Imp. Carbon-fiber Leg | -5/Factory | Hacked VSS Leg | -5/Factory | Hacked Imp. Titanium Leg | -5/Factory | Hacked Adv. Plasma Cannon | -3/Research | Hacked Myomer Leg | -3/Research | Hacked Biometal Leg | -2/Research | Hacked Nova Cannon | -2/Research | Hacked Alien Tech Used ----------------- None Achievements -------------- Cannon Specialist Challenges ------------ None Game ------ Seed StasisPitchforkScanner Manual? 0 Play Time 03:37:09 Cumulative 196.3 hours Start 2026.08.07 @ 15:33:22 End 2026.08.07 @ 20:00:14 Sessions 1 Manual Loads 0 Difficulty Rogue Special Mode None Game No. 205 Rogue 151 Adventurer 54 Explorer 0 Win Type - Total 9 Types 5/0/1/1/0/0/0/1/0/1 Lore% 69 Gallery% 60 Achievement% 56 Wizard Run 0 Options --------- Layout 1 ASCII 0 Keyboard 0 Movement Mouse Keybinds 1 Fullscreen 2 Font 32/Tamsyn Map View 50x35 Zoom Use 0% Tactical HUD 1 Map Filters NONE Filters NONE Steam 1 RUN: aa851215-8714-4cf0-94fa-da2e8b3d292b